bitfinex/quotes_ETHUSD_20251226
["timestamp","ask_amount","ask_price","bid_price","bid_amount"]
[1766777583928,0.9458,2927.5,2926.7,6.83363514]
[1766777584131,0.9458,2927.5,2926.7,3.41681757]
[1766777584328,0.9448,2927.1,2926.6,3.41689042]
[1766777584924,0.9448,2927.1,2926.7,0.03416817]
[1766777587825,0.9448,2927.1,2926.7,3.45097921]
[1766777589851,0.9448,2927.1,2926.7,0.03416817]
[1766777590345,0.9448,2927.1,2926.7,3.41680161]
[1766777590552,0.9448,2927.1,2926.7,3.45096978]
[1766777591313,4.42446139,2927.5,2926.7,3.45096978]
[1766777591314,0.9458,2927.5,2926.7,3.45096978]
[1766777591551,0.9458,2927.5,2926.7,6.86778735]
[1766777591853,0.9458,2927.5,2926.7,6.83361918]
[1766777592053,0.9458,2927.5,2926.8,3.45076454]
[1766777592252,0.001,2927.3,2926.8,3.45076454]
[1766777593153,0.97897751,2927.7,2926.8,6.86746537]
[1766777593319,0.9448,2927.7,2926.8,3.41659754]
[1766777593824,0.97897751,2927.7,2926.8,3.41659754]
[1766777594024,0.97897751,2927.7,2926.6,6.83386864]
[1766777596767,0.9448,2927.7,2926.7,0.03416817]
[1766777597925,0.9448,2927.7,2926.7,3.86416817]
[1766777598749,0.9448,2927.7,2926.8,6.83340166]
[1766777599059,0.9458,2927.7,2926.9,0.03416584]
[1766777600057,0.97997751,2927.7,2926.9,0.03416584]
[1766777600258,0.9458,2927.7,2927.0,3.41646737]
[1766777600460,0.9458,2927.7,2927.1,0.0341635]
[1766777602255,0.9458,2927.7,2927.1,3.41634545]
[1766777603678,0.9458,2927.7,2927.0,3.41643634]
[1766777603867,0.9458,2927.7,2926.9,3.41653056]
[1766777603868,0.9947,2927.6,2926.9,3.41653056]
[1766777604076,1.02887751,2927.6,2927.0,0.03416467]
[1766777604278,1.02887751,2927.6,2926.9,3.41653056]
[1766777604783,1.02887751,2927.6,2927.0,0.03416467]
[1766777604962,0.9947,2927.6,2927.0,0.03416467]
[1766777605473,1.02887751,2927.6,2927.0,0.03416467]
[1766777605675,0.9947,2927.6,2927.0,0.03416467]
[1766777606079,1.02887751,2927.6,2927.0,0.03416467]
[1766777606685,1.02987751,2927.6,2927.0,0.03416467]
[1766777607588,0.9947,2927.3,2926.7,3.83]
[1766777607884,1.03740146,2927.3,2926.7,3.83]
[1766777608183,1.03740146,2927.3,2926.8,0.01707066]
[1766777608762,0.9947,2927.3,2926.8,3.43375257]
[1766777609880,0.0427,2927.4,2926.8,3.43375257]
[1766777610050,0.04269854,2927.5,2926.8,3.43375257]
[1766777610252,1.03739854,2927.5,2926.8,3.43375257]
[1766777612574,1.03739854,2927.5,2926.8,0.01707066]
[1766777612887,1.03739854,2927.5,2926.8,3.43374471]
[1766777613988,1.03739854,2927.5,2926.8,6.83337488]
[1766777613989,0.9947,2927.5,2926.8,6.83337488]
[1766777614675,0.9947,2927.5,2926.8,6.83537488]
[1766777615284,0.9947,2927.5,2927.0,3.41646737]
[1766777615479,0.9947,2927.5,2927.1,0.01706307]
[1766777617515,0.9947,2927.5,2927.1,3.43338558]
[1766777617677,0.9947,2927.5,2927.1,0.01706307]
[1766777618881,0.001,2927.6,2927.1,3.43338616]
[1766777619809,0.001,2927.6,2927.1,6.84973681]
[1766777620006,0.001,2927.6,2927.1,6.83267374]
[1766777620178,0.001,2927.6,2927.2,0.01706016]
[1766777620579,0.9957,2927.6,2927.1,3.41632309]
[1766777621192,0.9957,2927.6,2926.8,0.002]
[1766777621400,0.9957,2927.6,2926.8,0.01906599]
[1766777622709,0.9957,2927.6,2927.0,0.002]
[1766777623011,0.9957,2927.6,2927.0,0.01906249]
[1766777624017,0.001,2927.6,2927.1,3.41635065]
[1766777624177,0.001,2927.6,2927.2,0.01706016]
[1766777626183,0.001,2927.6,2927.2,3.43325196]
[1766777627983,0.001,2927.8,2927.2,3.43325196]
[1766777629424,0.001,2927.8,2927.2,6.8494859]
[1766777629740,0.001,2928.0,2927.2,6.83242574]
[1766777629900,0.001,2928.0,2927.3,0.01705374]
[1766777630494,0.90209455,2928.1,2927.3,0.01705374]
[1766777631932,0.90209455,2928.1,2927.4,3.41600054]
[1766777633528,0.90209455,2928.1,2927.5,0.01704907]
[1766777637914,0.85309455,2928.1,2927.5,0.01704907]
[1766777638327,0.85309455,2928.1,2927.5,3.43292275]
[1766777638507,0.85309455,2928.1,2927.6,0.34329228]
[1766777638830,0.85309455,2928.1,2927.7,0.01704557]
[1766777639214,0.85309455,2928.1,2927.4,3.43304238]
[1766777639602,0.913,2928.5,2927.5,7.72875391]
[1766777639798,0.913,2928.5,2927.6,0.01704265]
[1766777640730,0.95467813,2928.9,2927.6,0.01704265]
[1766777641732,0.95467813,2928.9,2927.7,10.24695153]
[1766777641733,0.912,2928.9,2927.7,10.24695153]
[1766777641938,0.04267959,2928.8,2927.8,0.01703448]
[1766777642135,0.912,2928.8,2927.8,0.01703448]
[1766777643742,0.912,2928.8,2927.9,6.83083438]
[1766777643937,0.912,2928.8,2927.8,0.01703448]
[1766777643938,0.04268105,2928.7,2927.8,3.41548273]
[1766777644239,0.912,2928.5,2927.5,4.31285051]
[1766777644442,5.32046139,2928.6,2927.7,3.41558976]
[1766777644443,0.912,2928.3,2927.7,3.41558976]
[1766777644640,0.912,2928.3,2927.8,0.01704149]
[1766777644841,0.912,2927.9,2927.3,0.002]
[1766777645041,0.912,2927.7,2927.0,3.41845364]
[1766777645217,0.912,2927.7,2927.1,3.41634291]
[1766777645423,0.912,2927.7,2927.2,0.34183429]
[1766777645730,0.912,2927.7,2927.2,3.75802291]
[1766777646443,0.912,2927.7,2927.2,7.17425685]
[1766777647039,0.912,2927.7,2927.3,0.002]
[1766777653647,0.912,2927.9,2927.3,0.002]
[1766777654230,0.912,2927.9,2927.4,3.41600054]
[1766777654656,0.95469271,2927.9,2927.4,3.41600054]
[1766777655060,0.001,2927.7,2927.4,3.41600054]
[1766777657460,0.001,2927.7,2927.3,3.83198009]
[1766777657941,0.9838,2927.7,2927.3,3.83198009]
[1766777664170,0.9838,2927.7,2927.3,0.41590778]
[1766777664476,0.9828,2927.4,2927.0,0.002]
[1766777664882,0.9828,2927.4,2927.0,3.41846075]
[1766777665240,0.9828,2927.4,2927.0,6.83492812]
[1766777666077,0.9828,2927.4,2927.0,3.41846075]
[1766777666437,0.04269708,2927.6,2927.0,6.83492812]
[1766777666776,0.9838,2927.7,2927.0,6.83492812]
[1766777671269,0.001,2927.7,2927.0,6.83492812]
[1766777674069,0.9838,2927.7,2927.0,6.83492812]
[1766777682174,0.001,2927.7,2927.0,6.83492812]
[1766777687670,0.9829,2927.7,2927.0,6.83492812]
[1766777701610,0.001,2927.7,2927.0,6.83492812]
[1766777701810,0.9056,2928.0,2927.2,4.42111139]
[1766777702114,0.9056,2928.4,2927.2,4.42111139]
[1766777702314,0.9056,2928.4,2927.3,6.83223448]
[1766777703218,0.7376,2928.4,2927.3,6.83223448]
[1766777705916,5.31811139,2928.5,2927.3,6.83223448]
[1766777706098,0.9056,2928.4,2927.3,6.83223448]
[1766777708719,0.9056,2928.4,2927.3,10.24835172]
[1766777709014,0.9056,2928.4,2927.4,5.31811139]
[1766777709214,0.9056,2928.4,2927.6,4.42111139]
[1766777709390,0.9056,2928.4,2927.4,9.14811139]
[1766777710015,0.9066,2928.4,2927.4,9.14811139]
[1766777710896,0.9066,2928.4,2927.5,6.8317677]
[1766777718604,0.898,2928.8,2927.5,6.8317677]
[1766777718605,0.9373,2928.7,2927.5,10.24765155]
[1766777720431,0.04268251,2928.6,2927.5,10.24765155]
[1766777720597,0.9373,2928.6,2927.5,10.24765155]
[1766777720797,0.97998396,2928.5,2927.5,10.24765155]
[1766777723929,0.97998396,2928.5,2927.5,14.07765155]
[1766777724236,0.98098396,2928.5,2927.5,14.07765155]
[1766777729031,0.9383,2928.5,2927.5,14.07765155]
[1766777729573,4.42009588,2928.8,2927.5,14.07765155]
[1766777729574,0.9383,2928.8,2927.5,17.4935354]
[1766777729729,0.9383,2928.8,2927.6,3.83]
[1766777729924,0.04268105,2928.7,2927.6,3.83]
[1766777731055,0.04268105,2928.7,2927.7,6.83130102]
[1766777731764,0.04268105,2928.7,2927.7,10.24695153]
[1766777731952,0.001,2928.5,2927.7,10.24695153]
[1766777734261,0.04268105,2928.7,2927.7,10.24695153]
[1766777734463,0.9373,2929.1,2927.8,4.45325121]
[1766777734667,0.04267668,2929.0,2927.9,4.727]
[1766777734961,0.04267668,2929.0,2928.0,0.034153]
[1766777735161,0.04267668,2929.0,2928.1,6.8303678]
[1766777735364,0.9373,2929.1,2928.2,0.03415067]
[1766777736269,0.04267668,2929.0,2928.2,0.03415067]
[1766777736634,0.9373,2929.1,2928.2,0.03415067]
[1766777737279,0.9373,2929.1,2928.3,6.8299013]
[1766777737474,0.9373,2929.1,2928.4,0.03414834]
[1766777738342,0.04267668,2929.0,2928.4,0.03414834]
[1766777738552,0.9373,2928.9,2928.4,0.03414834]
[1766777740168,0.9373,2928.9,2928.4,3.44891827]
[1766777744450,1.03017522,2929.1,2928.4,3.44891827]
[1766777748276,1.03017522,2929.1,2928.4,6.8637523]
[1766777748455,0.9875,2929.1,2928.4,6.82960396]
[1766777748642,0.001,2929.1,2928.2,4.41909588]
[1766777748847,0.001,2929.1,2928.3,0.0341495]
[1766777750385,0.9875,2929.1,2928.2,0.3832]
[1766777750771,0.9875,2929.1,2928.3,3.41495065]
[1766777750971,0.9875,2929.1,2928.4,0.37254207]
[1766777751992,1.02917668,2929.0,2928.5,0.03414717]
[1766777752772,1.02917668,2929.0,2928.4,3.44893832]
[1766777753351,0.9865,2929.0,2928.4,3.44893832]
[1766777755680,0.9865,2929.0,2928.4,6.86377235]
[1766777755879,0.9865,2929.0,2928.4,6.82962401]
[1766777756275,0.9865,2929.0,2928.4,3.41478998]
[1766777756451,0.9865,2929.0,2928.4,3.44893832]
[1766777756852,0.9865,2929.0,2928.4,6.86377235]
[1766777757052,0.9865,2929.0,2928.4,6.82962401]
[1766777757264,0.9865,2929.0,2928.5,3.44879677]
[1766777763758,0.9865,2929.0,2928.5,0.03414717]
[1766777763985,0.9865,2929.0,2928.4,3.41677749]
[1766777764791,0.9865,2929.0,2928.4,0.002]
[1766777769294,0.9359,2928.9,2928.4,0.002]
[1766777769591,0.97857813,2928.9,2928.4,0.002]
[1766777769795,0.9359,2928.8,2928.4,0.002]
[1766777772681,0.9359,2928.6,2928.1,0.03615183]
[1766777772883,0.9359,2928.6,2928.1,0.002]
[1766777773998,0.9359,2928.6,2928.1,6.8323678]
[1766777774305,0.9359,2928.6,2928.2,0.03415067]
[1766777774469,0.9359,2928.6,2928.4,0.002]
[1766777777404,0.9962,2928.5,2928.2,0.03415067]
[1766777777604,0.9962,2928.4,2928.2,0.03415067]
[1766777777897,0.9962,2928.4,2928.1,0.002]
[1766777778099,0.9962,2928.4,2928.0,0.034153]
[1766777778303,0.9962,2928.4,2927.9,3.41536228]
[1766777778602,0.9962,2928.4,2928.0,0.034153]
[1766777779099,0.9962,2928.4,2928.0,3.41529545]
[1766777779278,0.9962,2928.4,2928.1,0.03415183]
[1766777783401,0.9962,2928.4,2928.0,0.036153]
[1766777783604,0.897,2928.9,2927.6,4.727]
[1766777783605,5.41439295,2928.1,2927.6,8.142703]
[1766777783769,5.41439295,2928.1,2927.6,4.312703]
[1766777783964,0.9962,2928.1,2927.6,4.312703]
[1766777784389,0.9962,2928.1,2927.7,3.41564896]
[1766777785537,0.9962,2928.0,2927.6,0.897]
[1766777785700,0.9962,2927.9,2927.5,0.002]
[1766777786097,0.9962,2928.3,2927.7,4.41819295]
[1766777786273,0.9962,2928.3,2927.8,0.03415533]
[1766777786475,0.9962,2928.3,2927.9,0.03415417]
[1766777786693,0.9962,2928.3,2927.7,0.0341565]
[1766777787204,0.04268251,2928.6,2927.7,0.0341565]
[1766777787205,1.93588251,2928.6,2927.7,0.0341565]
[1766777787593,1.03888251,2928.6,2927.8,3.41553384]
[1766777787794,1.03888251,2928.6,2927.9,0.03415417]
[1766777788493,0.9962,2928.6,2927.9,0.03415417]
[1766777788801,4.41919295,2929.0,2927.9,0.03415417]
[1766777788802,0.9962,2928.9,2927.9,0.03415417]
[1766777788977,1.03887813,2928.9,2927.9,0.03415417]
[1766777789178,0.9962,2928.9,2927.9,0.03415417]
[1766777789790,0.9962,2928.9,2928.0,6.83060108]
[1766777790090,0.9962,2928.9,2928.1,0.03415183]
[1766777790889,0.9972,2928.9,2928.1,0.03415183]
[1766777791209,0.001,2928.9,2928.1,0.03415183]
[1766777791870,0.001,2928.9,2928.2,3.41506727]
[1766777792075,0.001,2928.9,2928.3,0.0341495]
[1766777794311,0.001,2928.9,2928.3,3.44902263]
[1766777798912,0.8982,2929.0,2928.3,3.44902263]
[1766777799113,0.8982,2929.0,2928.4,0.34490226]
[1766777799282,0.8982,2929.0,2928.5,0.03414717]
[1766777806018,0.8992,2929.0,2928.5,0.03414717]
[1766777812622,0.8992,2929.0,2928.5,3.44881181]
[1766777813525,0.8992,2929.0,2928.5,0.03414717]
[1766777816525,0.8992,2929.0,2928.5,3.44885532]
[1766777817225,0.8992,2929.0,2928.5,0.03414717]
[1766777819235,0.8992,2929.0,2928.4,0.03414834]
[1766777821420,0.8992,2929.0,2928.4,3.44897505]
[1766777821927,0.8992,2929.0,2928.4,6.86380908]
[1766777822129,0.001,2929.1,2928.4,6.83166074]
[1766777822806,0.9974,2929.1,2928.4,6.83166074]
[1766777823115,0.9974,2929.1,2928.4,0.002]
[1766777827939,0.001,2929.3,2928.5,4.41819295]
[1766777828115,0.001,2929.6,2928.7,4.41819295]
[1766777828311,0.001,2929.6,2928.8,0.03414367]
[1766777828512,0.9974,2929.6,2928.9,3.41425108]
[1766777829128,0.9974,2929.6,2928.9,6.82850216]
[1766777829336,0.9974,2929.6,2928.9,3.41425108]
[1766777829738,0.9974,2929.6,2929.0,0.03414134]
[1766777830414,0.001,2929.3,2929.0,0.03414134]
[1766777831344,0.001,2929.3,2929.0,3.4482605]
[1766777831648,0.9974,2929.6,2929.0,3.4482605]
[1766777832417,0.9974,2929.6,2929.0,0.03414134]
[1766777832829,0.9964,2929.3,2928.6,3.83]
[1766777833028,0.9964,2929.1,2928.7,3.44862127]
[1766777834250,0.9964,2929.1,2928.7,6.86310551]
[1766777834451,0.9964,2929.1,2928.7,6.82896067]
[1766777834647,0.9964,2929.1,2928.8,0.03414367]
[1766777838067,0.9964,2929.1,2928.7,0.03414484]
[1766777839555,0.9964,2929.1,2928.4,0.002]
[1766777843764,0.9964,2929.1,2928.4,0.03614834]
[1766777844564,0.001,2929.3,2928.4,0.03614834]
[1766777844767,0.9184,2929.3,2928.4,0.03614834]
[1766777845336,0.9184,2929.3,2928.5,6.82943486]
[1766777845537,0.9184,2929.3,2928.6,0.034146]
[1766777847468,0.9184,2929.3,2928.7,3.41448424]
[1766777847668,0.9184,2929.3,2928.8,0.03414367]
[1766777849274,0.9184,2929.6,2928.8,0.03414367]
[1766777849571,0.9184,2929.6,2929.0,6.82826902]
[1766777849796,0.001,2930.1,2929.1,0.03414017]
[1766777849971,0.9174,2929.9,2929.1,0.03414017]
[1766777851363,0.9174,2929.8,2929.1,0.03414017]
[1766777851574,0.9174,2929.8,2929.2,3.4139014]
[1766777852068,4.41696293,2929.9,2929.1,3.44809893]
[1766777852069,0.001,2929.6,2929.1,3.44809893]
[1766777852270,0.9184,2929.6,2929.1,3.44809893]
[1766777853343,0.9184,2929.6,2929.1,0.03414017]
[1766777853665,0.9184,2929.6,2929.1,3.44812424]
[1766777854585,0.9184,2929.6,2929.1,6.86214219]
[1766777854747,0.9184,2929.6,2929.1,6.82800202]
[1766777855681,0.9184,2929.6,2928.8,6.8287353]
[1766777855983,0.001,2930.1,2929.1,4.41696293]
[1766777856180,0.9184,2930.1,2929.2,0.03413901]
[1766777856475,0.9184,2930.1,2929.3,0.03413784]
[1766777856686,0.9184,2930.1,2929.4,0.03413668]
[1766777856982,0.9184,2930.0,2929.0,0.03414134]
[1766777857979,0.9184,2930.0,2929.1,6.8280359]
[1766777858147,0.9184,2930.0,2929.2,0.03413901]
[1766777858347,0.9174,2929.8,2928.8,5.0]
[1766777858572,0.9174,2929.8,2928.8,8.41432927]
[1766777858883,0.9174,2929.5,2928.9,0.03414251]
[1766777859177,0.9174,2929.5,2928.8,3.41435603]
[1766777859376,0.9174,2929.5,2928.9,3.79323602]
[1766777859579,0.9174,2929.5,2929.0,0.002]
[1766777859760,0.9174,2929.5,2929.0,3.41613401]
[1766777861355,0.9174,2929.5,2929.0,0.002]
[1766777863999,0.001,2930.0,2929.0,0.899]
[1766777864000,0.9184,2930.0,2929.0,0.899]
[1766777864187,0.9184,2930.0,2929.2,3.4139014]
[1766777864386,0.9184,2930.0,2929.3,0.03413784]
[1766777866867,0.9184,2930.0,2929.3,3.44785051]
[1766777868613,0.9184,2930.0,2929.3,0.03413784]
[1766777868908,0.9959,2929.6,2929.0,0.002]
[1766777869205,0.9959,2929.4,2929.0,0.002]
[1766777869412,0.9959,2929.4,2929.0,0.03614134]
[1766777871569,0.9959,2929.4,2929.0,3.45026319]
[1766777873697,0.9959,2929.4,2929.0,0.03614134]
[1766777874189,0.9959,2929.4,2929.0,3.4502251]
[1766777874566,0.001,2929.6,2929.0,3.4502251]
[1766777875770,0.9969,2929.6,2929.0,3.4502251]
[1766777876698,0.9969,2929.6,2929.0,6.86435961]
[1766777876993,0.9969,2929.6,2929.0,6.83021827]
[1766777877781,0.9969,2929.6,2929.0,0.002]
[1766777878996,0.001,2929.6,2929.0,0.002]
[1766777880210,0.001,2929.6,2929.0,0.03614134]
[1766777880378,0.001,2929.6,2929.0,0.002]
[1766777880776,0.001,2929.6,2929.0,6.83026902]
[1766777881014,0.001,2929.6,2929.1,0.03414017]
[1766777881579,0.9969,2929.6,2929.1,0.03414017]
[1766777883213,0.9969,2929.6,2929.1,3.44812602]
[1766777885381,0.9969,2929.6,2929.1,0.03414017]
[1766777885577,0.9969,2929.6,2929.0,3.4501903]
[1766777885781,0.9969,2929.6,2929.1,3.41399535]
[1766777885981,0.9969,2929.6,2929.2,0.03413901]
[1766777886601,0.9969,2929.6,2929.1,3.41401353]
[1766777886802,0.9969,2929.6,2929.2,0.03413901]
[1766777888619,0.9969,2929.6,2929.0,3.41607488]
[1766777889322,0.9969,2929.6,2929.1,3.44814325]
[1766777893917,4.41696293,2929.3,2928.6,3.83]
[1766777894120,4.41696293,2929.3,2928.7,0.03414484]
[1766777894121,1.0300632,2929.2,2928.7,0.03414484]
[1766777894285,0.0341632,2929.2,2928.7,0.03414484]
[1766777894483,1.0072632,2929.4,2929.0,0.002]
[1766777894813,0.001,2929.6,2929.1,0.966]
[1766777895017,0.0351632,2929.6,2929.2,1.00013901]
[1766777895211,0.001,2929.6,2929.2,1.00013901]
[1766777895396,0.001,2929.6,2929.2,4.41392864]
[1766777895711,0.001,2929.6,2929.2,1.00013901]
[1766777896683,0.001,2929.6,2929.2,0.03413901]
[1766777897412,0.001,2929.6,2929.1,3.41397514]
[1766777897615,0.001,2929.6,2929.0,4.38210321]
[1766777897783,5.38902862,2929.5,2929.0,0.002]
[1766777898139,0.9731,2929.5,2929.0,0.002]
[1766777898316,1.0072632,2929.5,2929.0,0.002]
[1766777899196,1.0072632,2929.5,2929.0,3.41610624]
[1766777899917,0.0341632,2929.5,2929.0,0.002]
[1766777900606,4.41592862,2929.4,2929.0,0.002]
[1766777900806,1.0072632,2929.3,2929.0,0.002]
[1766777901121,1.0072632,2929.3,2928.7,4.796]
[1766777901619,0.9731,2929.2,2928.7,8.24461776]
[1766777901821,0.9731,2929.2,2928.7,8.21047292]
[1766777901985,0.9731,2929.2,2928.8,0.03414367]
[1766777903420,0.0341632,2929.1,2928.8,0.03414367]
[1766777905026,0.9731,2929.2,2928.8,3.44849104]
[1766777905694,0.9731,2929.2,2928.8,0.03414367]
[1766777906090,0.0341632,2929.1,2928.8,0.03414367]
[1766777908133,0.0341632,2929.1,2928.8,0.03614367]
[1766777909729,0.0341632,2929.1,2928.8,3.45050208]
[1766777910025,0.9731,2929.2,2928.8,3.45050208]
[1766777910717,0.9731,2929.2,2928.8,0.03614367]
[1766777910913,0.0341632,2929.1,2928.8,0.03614367]
[1766777911215,0.0341632,2929.1,2928.8,3.45050525]
[1766777913423,0.0341632,2929.1,2928.8,0.03614367]
[1766777914737,0.9731,2929.2,2928.8,3.45049199]
[1766777915204,0.9731,2929.5,2928.8,3.45049199]
[1766777915413,1.60180286,2929.4,2928.8,3.45049199]
[1766777916120,0.001,2929.2,2928.8,3.45049199]
[1766777918840,0.001,2929.2,2928.8,0.03614367]
[1766777923028,0.001,2929.6,2928.9,0.966]
[1766777923205,0.001,2929.6,2928.8,3.45050847]
[1766777923206,0.9321632,2929.6,2929.0,1.00014134]
[1766777923406,0.19052632,2929.5,2929.0,1.00014134]
[1766777923705,0.0341632,2929.4,2929.0,1.00014134]
[1766777924137,0.9988632,2929.5,2929.0,1.00014134]
[1766777924315,0.001,2929.2,2929.0,1.00014134]
[1766777927137,0.001,2929.2,2929.0,0.966]
[1766777927528,0.001,2929.2,2928.8,0.002]
[1766777928028,0.9039,2929.2,2928.8,0.002]
[1766777934943,0.0341632,2929.1,2928.8,0.002]
[1766777935244,0.9029,2929.0,2928.4,0.002]
[1766777935447,0.9029,2928.8,2928.4,0.002]
[1766777935749,0.9029,2928.6,2928.3,0.002]
[1766777936052,0.897,2929.1,2928.3,3.41686899]
[1766777936053,0.94557959,2928.8,2928.3,3.41686899]
[1766777936237,0.94557959,2928.8,2928.4,3.43182943]
[1766777936735,0.9029,2928.8,2928.4,7.84775805]
[1766777937046,0.9029,2928.8,2928.4,3.41476839]
[1766777937243,0.9029,2928.8,2928.4,3.43182653]
[1766777938849,0.04367376,2929.2,2928.6,4.41592862]
[1766777939151,0.04367376,2929.2,2928.7,1.01574939]
[1766777940751,0.04367376,2929.2,2928.7,4.43022752]
[1766777940959,0.001,2929.2,2928.8,0.9987]
[1766777943161,0.001,2929.2,2928.8,1.01574648]
[1766777943521,0.001,2929.2,2928.8,0.9987]
[1766777944225,0.001,2929.2,2928.9,5.43167626]
[1766777944436,0.001,2929.2,2928.9,1.01574764]
[1766777948173,0.001,2929.2,2928.9,0.01704764]
[1766777948458,0.001,2929.2,2928.8,0.01904764]
[1766777949229,0.001,2929.2,2928.8,0.002]
[1766777949429,0.9039,2929.2,2928.8,0.002]
[1766777952122,0.04267522,2929.1,2928.8,0.002]
[1766777952828,0.9029,2929.1,2928.8,0.002]
[1766777953824,0.04267668,2929.0,2928.8,0.002]
[1766777954538,0.97917668,2929.0,2928.6,0.01704881]
[1766777962571,0.04367376,2929.2,2928.6,4.39284937]
[1766777962983,0.04367376,2929.2,2928.6,3.43164937]
[1766777963153,0.04367376,2929.2,2928.7,0.9612]
[1766777964862,0.04367376,2929.2,2928.7,4.37566599]
[1766777965495,0.04367376,2929.2,2928.8,0.01704764]
[1766777965656,0.04367376,2929.2,2928.8,0.97824764]
[1766777966056,0.98017376,2929.2,2928.5,0.9612]
[1766777966269,0.98017376,2929.2,2928.6,3.41457119]
[1766777967287,0.98017376,2929.2,2928.5,0.9612]
[1766777967458,0.98017376,2929.2,2928.5,4.37588013]
[1766777968201,0.98017376,2929.2,2928.5,0.9612]
[1766777968390,0.98017376,2929.2,2928.5,4.3758794]
[1766777968786,0.98017376,2929.2,2928.5,0.9612]
[1766777969660,0.98017376,2929.2,2928.5,4.37591399]
[1766777969860,0.98017376,2929.2,2928.6,0.01705114]
[1766777971503,0.04367376,2929.2,2928.6,0.97825114]
[1766777971660,0.04367376,2929.2,2928.7,0.9612]
[1766777971661,0.001,2929.2,2928.7,0.9612]
[1766777971866,0.9375,2929.2,2928.6,3.43157979]
[1766777972200,0.97917522,2929.1,2928.6,0.01705114]
[1766777973166,0.97917522,2929.1,2928.4,0.9632]
[1766777973395,0.97917522,2929.1,2928.4,4.37794587]
[1766777973696,0.97917522,2929.1,2928.5,3.4147157]
[1766777974793,0.97917522,2929.1,2928.6,0.01705231]
[1766777976271,0.97917522,2929.1,2928.6,0.97825231]
[1766777977803,0.98017522,2929.1,2928.6,0.97825231]
[1766777978300,0.98017522,2929.1,2928.6,4.39284832]
[1766777979298,0.98017522,2929.1,2928.6,0.97825231]
[1766777981001,0.98017522,2929.1,2928.4,3.41682101]
[1766777981176,0.98017522,2929.1,2928.4,4.37802101]
[1766777981497,0.98017522,2929.1,2928.4,0.9632]
[1766777982613,0.98017522,2929.1,2928.4,4.37803289]
[1766777983310,0.98017522,2929.1,2928.5,0.9612]
[1766777985410,0.98017522,2929.1,2928.4,0.002]
[1766777985618,0.9193,2929.0,2928.3,0.002]
[1766777985925,0.9193,2928.8,2928.3,0.002]
[1766777986220,0.96198105,2928.7,2928.3,0.002]
[1766777995827,0.96198105,2928.7,2927.9,0.002]
[1766777997409,1.825,2928.6,2927.9,0.002]
[1766777997615,0.97068396,2928.5,2927.9,0.002]
[1766777997900,0.928,2928.3,2927.9,0.002]
[1766777998123,0.97068834,2928.2,2927.9,0.002]
[1766777999509,0.97068834,2928.2,2927.6,0.002]
[1766778000630,0.97068834,2928.2,2927.5,0.002]
[1766778002725,0.928,2928.0,2927.5,0.002]
[1766778003118,0.928,2928.3,2927.5,0.919]
[1766778003319,0.04268834,2928.2,2927.5,0.919]
[1766778005323,0.04268834,2928.2,2927.7,0.917]
[1766778024347,0.04368834,2928.2,2927.7,0.917]
[1766778029558,3.41553945,2928.7,2927.8,0.03415533]
[1766778029559,0.9366,2928.5,2927.8,0.03415533]
[1766778029755,1.8346,2928.7,2928.0,0.9709]
[1766778029931,0.04267434,2928.6,2928.1,0.03415183]
[1766778030254,0.9366,2928.6,2928.1,0.03415183]
[1766778032261,0.9376,2928.6,2928.1,0.03415183]
[1766778035161,0.04267434,2928.5,2928.1,0.03415183]
[1766778040057,0.04267434,2928.5,2928.1,1.00505183]
[1766778041160,0.04367434,2928.5,2928.1,1.00505183]
[1766778043774,0.9366,2928.4,2928.0,0.002]
[1766778050748,0.04267434,2928.3,2928.0,0.002]
[1766778051049,0.9366,2928.4,2928.0,0.002]
[1766778053486,0.04267434,2928.3,2928.0,0.002]
[1766778056488,1.02587434,2928.3,2927.6,0.002]
[1766778056669,1.02587434,2928.2,2927.6,0.002]
[1766778056873,0.9832,2928.0,2927.6,0.03615767]
[1766778058893,0.19228743,2928.1,2927.6,0.9158]
[1766778059186,0.04267434,2928.2,2927.7,0.0341565]
[1766778059396,1.02587434,2928.2,2927.7,0.0341565]
[1766778063094,0.001,2928.4,2927.8,0.9138]
[1766778063400,0.001,2928.4,2928.0,0.9138]
[1766778065202,0.001,2928.4,2928.1,0.03415183]
[1766778065403,0.001,2928.4,2928.0,0.947953]
[1766778065706,0.001,2928.4,2928.0,0.9138]
[1766778067113,0.001,2928.4,2928.0,0.9158]
[1766778067878,0.001,2928.4,2928.1,0.03415183]
[1766778069382,0.001,2928.4,2928.0,0.949953]
[1766778069817,0.001,2928.4,2928.0,0.9158]
[1766778073718,0.001,2928.4,2928.1,0.03415183]
[1766778075314,0.001,2928.4,2928.0,0.949953]
[1766778075514,0.001,2928.4,2928.0,0.9158]
[1766778076509,0.001,2928.4,2928.1,0.03415183]
[1766778077318,0.001,2928.4,2928.0,0.949953]
[1766778077510,0.001,2928.4,2928.0,0.9158]
[1766778078607,0.001,2928.4,2928.1,0.03415183]
[1766778080499,0.001,2928.4,2928.0,0.949953]
[1766778080699,0.001,2928.4,2928.0,0.9158]
[1766778082419,0.001,2928.4,2928.1,0.03415183]
[1766778082621,0.001,2928.4,2928.1,0.96805183]
[1766778087498,0.001,2928.6,2928.2,0.9339]
[1766778087704,0.001,2928.6,2928.3,0.9680495]
[1766778106217,0.001,2928.6,2928.3,4.38298277]
[1766778107345,0.001,2928.6,2928.3,0.9680495]
[1766778108147,0.001,2928.6,2928.4,0.9254]
[1766778109329,0.001,2929.1,2928.5,0.95954717]
[1766778110234,0.001,2928.6,2928.5,0.9254]
[1766778110419,0.001,2929.1,2928.4,6.82966806]
[1766778110619,0.001,2929.1,2928.5,0.9254]
[1766778111744,0.001,2929.1,2928.5,4.34008988]
[1766778112158,0.001,2929.1,2928.6,0.9829]
[1766778118557,0.001,2929.1,2928.6,4.39749763]
[1766778119328,0.001,2929.1,2928.6,0.9829]
[1766778120964,0.9272,2929.1,2928.6,0.9829]
[1766778121142,0.9272,2929.1,2928.3,1.0190495]